Cogmind - Beta 15 @@@ ROGUE MODE // 2025.09.03 @ 15:53:18 Player: celerysam Result: Destroyed by YT-0JH(R) with Subdweller Machine Gun Performance ------------- Evolutions (0) 0 Regions Visited (2) 400 Robots Destroyed (5) 25 Value Destroyed (161) 161 Prototype IDs (0) 0 Alien Tech Used (0) 0 Bonus (0) 0 TOTAL SCORE: 586 Bonus ------- None Cogmind --------- Core Integrity 0/250 Matter 262/300 Energy 200/200 System Corruption 0% Temperature Cool (0) Movement Rolling (200) Ox8 Location -10/Subcaves Parts ------- > --- POWER (1) -------- Subdweller Power Source > --- PROPULSION (2) --- Light Treads Wheel > --- UTILITY (2) ------ Huge Storage Unit Subdweller Optics > --- WEAPON (2) ------- Barrage Gun > --- INVENTORY (25) --- Light Ion Engine Light Treads Aluminum Leg Heat Sink Small Storage Unit Targeting Computer EM Pulse Gun Assault Rifle Light Assault Rifle Battle Rifle Subdweller Machine Gun Battle Cannon Grenade Launcher Peak State ------------ > --- POWER ------------ Subdweller Power Source > --- PROPULSION ------- Wheel Compact Wheel > --- UTILITY ---------- Huge Storage Unit Subdweller Optics > --- WEAPON ----------- Small Laser Barrage Gun > --- INVENTORY -------- Light Ion Engine Light Treads Light Treads Aluminum Leg Heat Sink Small Storage Unit Targeting Computer EM Pulse Gun Assault Rifle Light Assault Rifle Battle Rifle Subdweller Machine Gun Battle Cannon Grenade Launcher [Rating: 12] Favorites ----------- Power Ion Engine Engine Ion Engine Propulsion Wheel Treads Light Treads Leg Aluminum Leg Wheel Wheel Utility Huge Storage Unit Device Subdweller Optics Storage Huge Storage Unit Protection Light Armor Plating Weapon EM Pulse Gun Energy Gun EM Pulse Gun Ballistic Gun Light Assault Rifle Build | -11 -10 -10 ------- Run | Yrd Mat Sub Slots Evolved . | . . . Power . | . . . Propulsion . | . . . Utility . | . . . Weapon . | . . . Parts Attached 17 | 7 6 4 Power 3 | 2 . 1 Engine 3 | 2 . 1 Core . | . . . Reactor . | . . . Propulsion 5 | 2 2 1 Treads 1 | . . 1 Leg 2 | 2 . . Wheel 2 | . 2 . Hover . | . . . Flight . | . . . Utility 4 | 1 2 1 Device 1 | . . 1 Storage 2 | 1 1 . Processor . | . . . Hackware . | . . . Protection 1 | . 1 . Artifact . | . . . Weapon 5 | 2 2 1 Energy Gun 2 | 1 1 . Energy Cannon . | . . . Ballistic Gun 3 | 1 1 1 Ballistic Cannon . | . . . Launcher . | . . . Special Weapon . | . . . Impact Weapon . | . . . Slashing Weapon . | . . . Piercing Weapon . | . . . Special Melee Weapon . | . . . Unidentified Prototypes . | . . . Parts Lost 5 | . 1 4 Power 1 | . . 1 Propulsion 1 | . . 1 Utility 1 | . . 1 Weapon 2 | . 1 1 Highest Loss Streak 2 | . 1 2 To Critical Strikes . | . . . Average Backups 10 | 4 8 13 Power . | . 1 1 Propulsion 3 | 3 3 2 Utility 1 | . 1 3 Weapon 3 | . 2 5 Tool/Special . | . . . Unused Backups 8 | . . 8 Power . | . . . Propulsion 1 | . . 1 Utility 2 | . . 2 Weapon 5 | . . 5 Tool/Special . | . . . Average Slot Usage (%) 95 | . 96 93 Engine 12 | . 14 11 Leg 5 | . 9 . Wheel 22 | . 18 26 Device 4 | . . 9 Storage 14 | . 14 14 Protection 7 | . 11 1 Energy Gun 13 | . 13 12 Ballistic Gun 14 | . 14 14 Peak Build Rating 12 | 6 8 12 Average Rating 8 | 4 7 10 On Entrance 4 | . 6 8 Naked Turns . | . . . Heaviest Build 92 | 13 92 91 Greatest Support 26 | 20 26 26 Greatest Overweight (x) 8 | 1 3 8 Average Overweight (x) 2 | . 1 3 Largest Inventory Capacity 25 | 8 25 25 Average Capacity 21 | 6 19 25 Most Carried 16 | 6 11 16 Average Carried 10 | 4 8 13 Final Capacity 25 | 8 25 25 Final Carried 13 | 6 10 13 Class Distribution -------------------- 100% | Mutant Dominant Class ---------------- Mutant | -10/Materials Mutant | -10/Subcaves Resources | -11 -10 -10 ----------- Run | Yrd Mat Sub Matter Collected 489 | 273 97 119 Remotely . | . . . Salvage Created 287 | 93 135 59 Parts 7 | 2 3 2 Haulers Intercepted . | . . . Recyclers Shooed . | . . . Parts Field Recycled . | . . . Retrieved Matter . | . . . Parts Self-Destructed . | . . . Prevented . | . . . Kills | -11 -10 -10 ------- Run | Yrd Mat Sub Combat Hostiles Destroyed 4 | . 3 1 Guns 4 | . 3 1 Classes Destroyed 3 | 1 1 1 Recycler 1 | 1 . . Grunt 3 | . 3 . Subdweller 1 | . . 1 Best Kill Streak 2 | 1 2 1 Combat Bots Only 2 | . 2 1 Max Kills in Single Turn 1 | 1 1 1 Gunslinging . | . . . Exploded . | . . . Melee . | . . . Uniques/NPCs Destroyed . | . . . Combat | -11 -10 -10 -------- Run | Yrd Mat Sub Hostile Shots Fired 53 | . 26 27 Missed 8 | . 5 3 Hits 45 | . 21 24 Projectile 45 | . 21 24 Damage Taken 769 | . 264 505 Core 250 | . 84 166 Absorbed by Shields . | . . . Core Remaining (%) 100 | 100 . . Volleys Fired 43 | 3 18 22 Largest 2 | 2 2 2 Hottest 68 | 60 60 68 Shots Fired 75 | 6 34 35 Gun 75 | 6 34 35 Cannon . | . . . Launcher . | . . . Special . | . . . Kinetic 43 | 3 18 22 Thermal 16 | . 3 13 Explosive . | . . . Electromagnetic 16 | 3 13 . Robot Hit Streak 9 | 6 6 9 Robot Miss Streak 3 | . 3 3 Penetration Max . | . . . Secondary Targets . | . . . Shots Hit Robots 49 | 6 18 25 Core Hits 14 | 2 8 4 Critical Kills . | . . . Critical Parts Destroyed 1 | . 1 . Critical Strikes 1 | . 1 . Destroy 1 | . 1 . Melee Attacks . | . . . Impact . | . . . Slashing . | . . . Piercing . | . . . Sneak Attacks . | . . . Combat Hostiles . | . . . Follow-up Attacks . | . . . Damage Inflicted 677 | 102 260 315 Guns 636 | 61 260 315 Cannons . | . . . Explosions 41 | 41 . . Melee . | . . . Ramming . | . . . Kinetic 403 | 16 135 252 Thermal 137 | 41 33 63 Explosive . | . . . Electromagnetic 137 | 45 92 . Impact . | . . . Slashing . | . . . Piercing . | . . . Highest Corruption . | . . . Average Corruption . | . . . Corruption Purged . | . . . Corruption Blocked . | . . . Overload Shots . | . . . Overflow Damage . | . . . Projectiles . | . . . Explosions . | . . . Melee . | . . . Knockbacks . | . . . Impact . | . . . Kinetic . | . . . Secondary . | . . . Self-Inflicted Damage . | . . . Shots . | . . . Rammed . | . . . Targets Rammed . | . . . Kicked . | . . . Crushed . | . . . Highest Temperature 189 | 20 189 . Average Temperature 75 | 15 80 . Received Heat Transfer 150 | . 150 . Siege Activations . | . . . Martial Activations . | . . . Shielding Activations . | . . . Robots Disrupted . | . . . Combat Hostiles . | . . . Robots Corrupted . | . . . Combat Hostiles . | . . . Parts Fried 2 | . 2 . Impact Corruptions . | . . . Robots Melted . | . . . Combat Hostiles . | . . . Parts Melted . | . . . Heat Transferred 225 | . 75 150 Parts Sabotaged . | . . . Parts Stolen . | . . . Parts Stripped . | . . . Power Chain Reactions 1 | 1 . . Alert | -11 -10 -10 ------- Run | Yrd Mat Sub Maximum Alert Level . | . . . Low Security (%) 100 | 100 100 . Level 1 . | . . . Level 2 . | . . . Level 3 . | . . . Level 4 . | . . . Level 5 . | . . . High Security . | . . . Max Security . | . . . Peak Influence 42 | 5 42 . Initial . | . . . Average 5 | 1 6 . Influence Increases 85 | 5 80 . Destroy 0b10 Robot/C 60 | . 60 . Destroy 0b10 Robot/NC 5 | 5 . . Destroy Leader 20 | . 20 . Influence Decreases 85 | 5 62 18 Entered New Map 10 | . . 10 Time Decay 69 | 5 56 8 Lost Part 6 | . 6 . Squads Dispatched 1 | . 1 . Investigation . | . . . Extermination . | . . . Reinforcement 1 | . 1 . Assault . | . . . Garrison . | . . . Intercept . | . . . Searches Triggered . | . . . Construction Impeded . | . . . Haulers Reinforced . | . . . Active Scanning Responses . | . . . Cargo Convoy Interrupts . | . . . Stealth | -11 -10 -10 --------- Run | Yrd Mat Sub Distress Signals . | . . . Communications Jammed . | . . . Distress Signals . | . . . Times Spotted 8 | . 6 2 Peak Tracking Total 2 | . 2 1 Tactical Retreats . | . . . Traps | -11 -10 -10 ------- Run | Yrd Mat Sub Traps Triggered 2 | . 2 . Indirectly . | . . . Trap Hack Attempts . | . . . Triggered . | . . . Disarmed . | . . . Reprogrammed . | . . . Reused . | . . . Traps Extracted . | . . . Installed . | . . . Triggered . | . . . Machines | -11 -10 -10 ---------- Run | Yrd Mat Sub Machines Disabled . | . . . Max in Single Turn . | . . . Machines Repaired . | . . . Machines Dismantled . | . . . Machines Sabotaged . | . . . Overloaded Fab Kills . | . . . Hacking | -11 -10 -10 --------- Run | Yrd Mat Sub Machines Accessed . | . . . Terminals . | . . . Fabricators . | . . . Repair Stations . | . . . Recycling Units . | . . . Scanalyzers . | . . . Garrison Access . | . . . Total Hacks . | . . . Successful . | . . . Failed . | . . . Catastrophic . | . . . Database Lockouts . | . . . Manual . | . . . Terminals . | . . . Fabricators . | . . . Repair Stations . | . . . Recycling Units . | . . . Scanalyzers . | . . . Garrison Access . | . . . Terminal Hacks . | . . . Fabricator Hacks . | . . . Repair Station Hacks . | . . . Recycling Unit Hacks . | . . . Scanalyzer . | . . . Garrison Access Hacks . | . . . Unauthorized Hacks . | . . . Terminals . | . . . Fabricators . | . . . Repair Stations . | . . . Recycling Units . | . . . Scanalyzers . | . . . Garrison Access . | . . . Data Cores Recovered . | . . . Used . | . . . Hacking Detections . | . . . Full Trace Events . | . . . Feedback Events . | . . . Feedback Blocked . | . . . Robot Schematics Acquired . | . . . Robots Built . | . . . Authchips . | . . . Time . | . . . Total Robot Build Rating . | . . . Part Schematics Acquired . | . . . Parts Built . | . . . Authchips . | . . . Time . | . . . Total Part Build Rating . | . . . Parts Repaired . | . . . Time . | . . . Parts Recycled . | . . . Recycled Matter . | . . . Retrieved Matter . | . . . Retrieved Components . | . . . Parts Scanalyzed . | . . . Part Schematics Acquired . | . . . Parts Damaged . | . . . Bothacking | -11 -10 -10 ------------ Run | Yrd Mat Sub Used RIF Installer . | . . . Robots Hacked . | . . . Non-combat . | . . . Combat . | . . . Robot Hacks Applied . | . . . Relay Couplers Released . | . . . Fabnet Peak Effective % . | . . . Robots Rewired . | . . . Allies Hacked . | . . . Hacks Repelled . | . . . Allies | -11 -10 -10 -------- Run | Yrd Mat Sub Total Allies . | . . . Largest Group . | . . . Highest-Rated Group . | . . . Highest-Rated Ally . | . . . Total Orders . | . . . Ally Attacks . | . . . Total Damage . | . . . Kills . | . . . Allies Corrupted . | . . . Allies Melted . | . . . Intel | -11 -10 -10 ------- Run | Yrd Mat Sub Active Infowar (turns) 295 | . . 295 Optics 295 | . . 295 Robot Analysis Total . | . . . Derelict Logs Recovered . | . . . Drone Launches . | . . . Drone Recoveries . | . . . Exploration | -11 -10 -10 ------------- Run | Yrd Mat Sub Turns Passed 1015 | 67 521 427 Spaces Moved 643 | 46 334 263 Core 17 | 17 . . Treads . | . . . Legs 148 | 29 119 . Wheels 478 | . 215 263 Hover . | . . . Flight . | . . . Fastest Speed 50 | 50 120 135 Average Speed 130 | 95 129 137 Slowest Speed 200 | 120 190 200 Overloaded Moves . | . . . Propulsion Burnouts . | . . . Robots Hopped . | . . . Potential Cave-ins . | . . . Cave-ins Triggered . | . . . Exploration Rate (%) 24 | 4 56 14 Regions Visited 2 Branch Regions 1 Pre-discovered Areas . | . . . Known Exits Taken . | . . . Unknown Exits Taken 2 | 1 1 . Scrap Searched 3 | . . 3 Spaces Dug . | . . . Terrain Destroyed 2 | 2 . . Melee . | . . . Projectile . | . . . AOE 2 | 2 . . Terrain Rammed . | . . . Walls Destroyed . | . . . Machines Disabled . | . . . Actions | -11 -10 -10 --------- Run | Yrd Mat Sub Total 741 | 62 384 295 Wait 15 | . 15 . Move 641 | 45 333 263 Hop . | . . . Pick Up 19 | 6 7 6 Fast Attach 11 | 6 5 . Attach 6 | . 3 3 Detach . | . . . Swap 5 | 1 3 1 Drop 1 | 1 . . Fire 43 | 3 18 22 Melee . | . . . Ram . | . . . Kick . | . . . Crush . | . . . Escape Stasis . | . . . Rewire . | . . . Trap . | . . . Miscellaneous . | . . . Route ------- -11/Scrapyard -10/Materials (discovered 3 exits: [*Mat] / [*Min] / [*Sub]) -10/Subcaves History --------- Turn | Location | Event 10 | -11/Scrapyard | Discovered new exit (range 16) 68 | -11/Scrapyard | Entered Materials 68 | -10/Materials | Discovered new exit (range 8) 310 | -10/Materials | Build established: Mutant 466 | -10/Materials | Discovered new exit (range 4) 575 | -10/Materials | Discovered new exit (range 12) 589 | -10/Materials | Entered Subcaves 972 | -10/Subcaves | Core integrity fell below 50% 1009 | -10/Subcaves | Core integrity fell below 20% 1016 | -10/Subcaves | Destroyed by YT-0JH(R) with Subdweller Machine Gun Last Messages --------------- 00687_ Searching scrap... 00687_ Found Battle Rifle. 00687_ Found 63 Matter. 00688_ Searching scrap... 00688_ Found Battle Cannon. 00688_ Found Sub. Optics. 00688_ Found 43 Matter. 00691_ Acquired Sub. Optics. 00696_ Acquired Battle Cannon. 00697_ Subatomizers dissect the Battle Rifle. 00701_ Acquired Battle Rifle. 00800_ Acquired 8 matter. 00826_ Acquired 12 matter. 00969_ Acquired 4 matter. 00971_ Acquired 1 matter. 00975_ Com. Wheel destroyed. 00977_ Sml. Laser destroyed. 00998_ Acquired 9 matter. 01010_ Sub. Optics shoots sparks and powers down. Map ----- +----------------------------------------------------+ | ##?????????????????????????????????????????????? | | #?????????????????????????????????????????????? | | ##?????????????????????????????????????????????? | | #####?????????????????????????????????????????? | | #?????????????????????????????????????????? | | #?????????????????????????????????????????? | | #?????????????????????????????????????????? | | ##?????????????????????????????????????????? | | ##??????????????????????????????????????????? | | ##???????????????????????????????????????????? | | ## ##????????????????????????????????????????????? | | ###?????????????????????????????????????????????? | | #???????????????????????????????????????????????? | | #???????????????????????????????????????????????? | | ##???????????#???????????????????????????????????? | | #????????????#&??????????????????????????????????? | | #????????????# ####??????????????????????????????? | | #####?????????" #??????????????????????????????? | | ## ###???????## ###?????????????????????????????? | | #??????##" ##????????????????????????????? | | # ######## #####????????????????????????? | | #### # # # ###??????????????????????? | | ???# ## #??????????????????????? | | ???## ### #### % #R #??????????????????????? | | ????####?######??# # ##?????????????????????? | | ?????????????????##% ###@ #?????????????????????? | | ??????????????????# #?# #?????????????????????? | | ??????????????????## ##?# ??????????????????? | | ???????????????????###??## # #?????????????????? | | ??????????????????????????####???????????????????? | | ?????????????????????????????????????????????????? | | ?????????????????????????????????????????????????? | | ?????????????????????????????????????????????????? | | ?????????????????????????????????????????????????? | | ?????????????????????????????????????????????????? | | ?????????????????????????????????????????????????? | | ?????????????????????????????????????????????????? | | ?????????????????????????????????????????????????? | | ?????????????????????????????????????????????????? | | ?????????????????????????????????????????????????? | | ?????????????????????????????????????????????????? | | ?????????????????????????????????????????????????? | | ?????????????????????????????????????????????????? | | ?????????????????????????????????????????????????? | | ?????????????????????????????????????????????????? | | ?????????????????????????????????????????????????? | | ?????????????????????????????????????????????????? | | ?????????????????????????????????????????????????? | | ?????????????????????????????????????????????????? | | ?????????????????????????????????????????????????? | +----------------------------------------------------+ Best States ------------- Heat Dissipation 25 Energy Generation 15 Energy Capacity 250 Matter Stores 300 Matter Capacity 300 Sight Range 21 Terrain Scan Density 10 Armor Coverage 150 Evasion (%) 55 Item Schematics ----------------- None Robot Schematics ------------------ None Fabricated ------------ Nothing Repaired ---------- Nothing Alien Tech Used ----------------- None Achievements -------------- None Challenges ------------ None Game ------ Seed HardlightPowerProjector Manual? 0 Play Time 00:12:48 Cumulative 275.3 hours Start 2025.09.03 @ 12:42:43 End 2025.09.03 @ 15:53:18 Sessions 1 Manual Loads 0 Difficulty Rogue Special Mode None Game No. 428 Rogue 428 Adventurer 0 Explorer 0 Win Type - Total 1 Types 1/0/0/0/0/0/0/0/0/0 Lore% 64 Gallery% 63 Achievement% 44 Wizard Run 0 Options --------- Layout 1 ASCII 0 Keyboard 0 Movement Mouse Keybinds 0 Fullscreen 2 Font 24/Smallcaps Map View 50x35 Zoom Use 0% Tactical HUD 1 Map Filters NONE Filters NONE Steam X RUN: f4fb976f-e9ea-47a0-b9bf-bf1b90a00b67